[Event "2nd Hersonissos Open 2018"]
[Site "Hersonissos"]
[Date "2018.06.24"]
[Round "9"]
[White "Kouvidis, Ioannis"]
[Black "Haverkamp, Klaus"]
[Result "1/2-1/2"]
[ECO "C47"]
[WhiteElo "1730"]
[BlackElo "1921"]
[Annotator "NA"]
[PlyCount "102"]
[EventDate "2018.06.23"]
[EventType "swiss"]
[EventCountry "GRE"]
[SourceTitle "playchess.com"]
[Source "ChessBase"]
[SourceQuality "1"]
[TimeControl "5400+30"]

1. e4 {[%emt 0:00:00]} e5 {[%emt 0:00:12]} 2. Nf3 {[%emt 0:00:00]} Nc6 {[%emt 0:00:37]} 3. Nc3 {[%emt 0:00:00]} Nf6 {[%emt 0:02:23]} 4. d4 {[%emt 0:00:13]} exd4 {[%emt 0:00:31]} 5. Nxd4 {[%emt 0:00:05]} Bb4 {[%emt 0:01:43]} 6. Nxc6 {[%emt 0:00:12]} bxc6 {[%emt 0:00:36]} 7. Bd3 {[%emt 0:00:06]} d5 {[%emt 0:03:10]} 8. exd5 {[%emt 0:00:14]} cxd5 {[%emt 0:00:34]} 9. O-O {[%emt 0:00:07]} O-O {[%emt 0:00:52]} 10. Qf3 {[%emt 0:00:30]} c6 {[%emt 0:06:13]} 11. h3 {[%emt 0:00:42]} Re8 {[%emt 0:04:14]} 12. Ne2 {[%emt 0:06:31]} Ne4 {[%emt 0:13:31]} 13. Ng3 {[%emt 0:05:04]} Qh4 {[%emt 0:03:40]} 14. Bxe4 {[%emt 0:19:37]} dxe4 {[%emt 0:00:53]} 15. Qf4 {[%emt 0:00:37]} Qxf4 {[%emt 0:02:47]} 16. Bxf4 {[%emt 0:00:11]} f5 {[%emt 0:06:20]} 17. Rfd1 {[%emt 0:04:31]} Be6 {[%emt 0:01:04]} 18. Ne2 {[%emt 0:04:29]} Rac8 {[%emt 0:06:32]} 19. Be3 {[%emt 0:13:28]} a6 {[%emt 0:01:56]} 20. Nd4 {[%emt 0:01:17]} Kf7 {[%emt 0:00:12]} 21. c3 {[%emt 0:06:09]} Be7 {[%emt 0:01:22]} 22. Rd2 {[%emt 0:02:07]} Red8 {[%emt 0:03:44]} 23. Rad1 {[%emt 0:04:39]} Bf6 {[%emt 0:01:57]} 24. b3 {[%emt 0:04:15]} h6 {[%emt 0:02:15]} 25. c4 {[%emt 0:00:59]} g5 {[%emt 0:03:55]} 26. Nxe6 {[%emt 0:02:50]} Kxe6 {[%emt 0:01:44]} 27. Bd4 {[%emt 0:02:51]} Rxd4 {[%emt 0:05:16]} 28. Rxd4 {[%emt 0:00:12]} Bxd4 {[%emt 0:00:03]} 29. Rxd4 {[%emt 0:00:05]} Ke7 {[%emt 0:00:24]} 30. g4 {[%emt 0:02:32]} Ke6 {[%emt 0:00:17]} 31. gxf5+ {[%emt 0:01:02]} Kxf5 {[%emt 0:00:29]} 32. Rd6 {[%emt 0:00:07]} h5 {[%emt 0:00:24]} 33. Rh6 {[%emt 0:00:20]} h4 {[%emt 0:00:20]} 34. Rh7 {[%emt 0:01:11]} Rd8 {[%emt 0:01:21]} 35. Rf7+ {[%emt 0:03:32]} Ke5 {[%emt 0:00:07]} 36. Re7+ {[%emt 0:00:16]} Kf4 {[%emt 0:03:02]} 37. Rf7+ {[%emt 0:00:07]} Ke5 {[%emt 0:00:04]} 38. Re7+ {[%emt 0:07:03]} Kf4 {[%emt 0:01:33]} 39. Rc7 {[%emt 0:00:00]} Rd6 {[%emt 0:00:00]} 40. Kg2 {[%emt 0:00:00]} Re6 {[%emt 0:00:00]} 41. Ra7 {[%emt 0:00:00]} a5 {[%emt 0:00:00]} 42. Rxa5 {[%emt 0:00:00]} e3 {[%emt 0:00:00]} 43. fxe3+ {[%emt 0:00:00]} Rxe3 {[%emt 0:00:00]} 44. b4 {[%emt 0:00:00]} Re2+ {[%emt 0:00:00]} 45. Kg1 {[%emt 0:00:00]} Rc2 {[%emt 0:00:00]} 46. b5 {[%emt 0:00:00]} cxb5 {[%emt 0:00:00]} 47. cxb5 {[%emt 0:00:00]} Rb2 {[%emt 0:00:00]} 48. Ra4+ {[%emt 0:00:00]} Kf5 {[%emt 0:00:00]} 49. Ra3 {[%emt 0:00:00]} Rxb5 {[%emt 0:00:00]} 50. Kg2 {[%emt 0:00:00]} Ke4 {[%emt 0:00:27]} 51. Rb3 {[%emt 0:00:00]} Rc5 {[%emt 0:00:47]} 1/2-1/2

[Event "2nd Hersonissos Open 2018"]
[Site "Hersonissos"]
[Date "2018.06.24"]
[Round "9"]
[White "Spirou, Gerasimos"]
[Black "Ergazaki, Eirini"]
[Result "1/2-1/2"]
[ECO "C50"]
[WhiteElo "1716"]
[BlackElo "1348"]
[Annotator "NA"]
[PlyCount "84"]
[EventDate "2018.06.23"]
[EventType "swiss"]
[EventCountry "GRE"]
[SourceTitle "playchess.com"]
[Source "ChessBase"]
[SourceQuality "1"]
[TimeControl "5400+30"]

1. e4 {[%emt 0:00:00]} e5 {[%emt 0:00:04]} 2. Nf3 {[%emt 0:00:00]} Nc6 {[%emt 0:00:06]} 3. Bc4 {[%emt 0:00:16]} Bc5 {[%emt 0:00:07]} 4. O-O {[%emt 0:00:12]} Nf6 {[%emt 0:00:48]} 5. d3 {[%emt 0:03:20]} d6 {[%emt 0:01:21]} 6. c3 {[%emt 0:00:29]} Bb6 {[%emt 0:01:48]} 7. a4 {[%emt 0:06:27]} a5 {[%emt 0:06:30]} 8. b4 {[%emt 0:03:50]} h6 {[%emt 0:03:54]} 9. b5 {[%emt 0:02:36]} Ne7 {[%emt 0:01:12]} 10. Bb3 {[%emt 0:24:48]} O-O {[%emt 0:02:33]} 11. Nbd2 {[%emt 0:03:47]} Ng6 {[%emt 0:01:04]} 12. Nc4 {[%emt 0:05:45]} Bc5 {[%emt 0:04:11]} 13. d4 {[%emt 0:02:31]} exd4 {[%emt 0:00:39]} 14. cxd4 {[%emt 0:00:08]} Bb4 {[%emt 0:00:15]} 15. e5 {[%emt 0:00:37]} dxe5 {[%emt 0:01:53]} 16. Ncxe5 {[%emt 0:04:18]} Ne7 {[%emt 0:05:26]} 17. Bb2 {[%emt 0:04:27]} Ned5 {[%emt 0:03:37]} 18. Rc1 {[%emt 0:11:21]} Be6 {[%emt 0:02:07]} 19. Qc2 {[%emt 0:01:18]} Nf4 {[%emt 0:03:47]} 20. Bxe6 {[%emt 0:01:21]} Nxe6 {[%emt 0:00:27]} 21. Rfd1 {[%emt 0:00:39]} Nd5 {[%emt 0:02:25]} 22. Qf5 {[%emt 0:01:11]} Ndf4 {[%emt 0:10:55]} 23. Rc2 {[%emt 0:00:51]} Qd5 {[%emt 0:04:29]} 24. g3 {[%emt 0:01:57]} g6 {[%emt 0:03:29]} 25. Qf6 {[%emt 0:01:40]} Nh5 {[%emt 0:08:49]} 26. Qh4 {[%emt 0:02:22]} f6 {[%emt 0:02:15]} 27. Qg4 {[%emt 0:00:15]} fxe5 {[%emt 0:02:34]} 28. Qxg6+ {[%emt 0:00:36]} Nhg7 {[%emt 0:01:19]} 29. Nxe5 {[%emt 0:00:49]} h5 {[%emt 0:04:32]} 30. Rdc1 {[%emt 0:03:14]} Be7 {[%emt 0:03:30]} 31. Qd3 {[%emt 0:02:32]} Bd8 {[%emt 0:03:13]} 32. f4 {[%emt 0:01:01]} h4 {[%emt 0:01:47]} 33. Ng6 {[%emt 0:01:05]} Rf7 {[%emt 0:01:37]} 34. Re1 {[%emt 0:02:53]} Nf5 {[%emt 0:01:43]} 35. Re5 {[%emt 0:00:34]} Qa2 {[%emt 0:03:47]} 36. Rxf5 {[%emt 0:00:35]} Qb1+ {[%emt 0:02:21]} 37. Kg2 {[%emt 0:00:41]} h3+ {[%emt 0:00:57]} 38. Kxh3 {[%emt 0:01:07]} Rxf5 {[%emt 0:00:33]} 39. Qxf5 {[%emt 0:00:14]} Qf1+ {[%emt 0:00:29]} 40. Rg2 {[%emt 0:00:00]} Ng5+ {[%emt 0:00:00]} 41. Kh4 {[%emt 0:00:00]} Nf7+ {[%emt 0:00:00]} 42. Kh3 {[%emt 0:00:00]} Ng5+ {[%emt 0:00:00]} 1/2-1/2

[Event "2nd Hersonissos Open 2018"]
[Site "Hersonissos"]
[Date "2018.06.24"]
[Round "9"]
[White "Papidakis, Georgios"]
[Black "Lobersli, Henrik Oie"]
[Result "0-1"]
[ECO "A45"]
[WhiteElo "1710"]
[BlackElo "2134"]
[Annotator "NA"]
[PlyCount "64"]
[EventDate "2018.06.23"]
[EventType "swiss"]
[EventCountry "GRE"]
[SourceTitle "playchess.com"]
[Source "ChessBase"]
[SourceQuality "1"]
[TimeControl "5400+30"]

1. d4 {[%emt 0:00:00]} Nf6 {[%emt 0:02:03]} 2. Bf4 {[%emt 0:00:00]} d5 {[%emt 0:00:47]} 3. e3 {[%emt 0:00:00]} c5 {[%emt 0:00:43]} 4. c3 {[%emt 0:00:00]} Nc6 {[%emt 0:00:52]} 5. Nd2 {[%emt 0:00:00]} cxd4 {[%emt 0:00:39]} 6. exd4 {[%emt 0:00:11]} Bf5 {[%emt 0:00:25]} 7. Ngf3 {[%emt 0:13:51]} e6 $11 {[%emt 0:00:42] LiveBook: 149 Games} 8. Be2 {[%emt 0:07:54]} Bd6 {[%emt 0:02:07]} 9. Bxd6 {[%emt 0:02:02]} Qxd6 {[%emt 0:00:34]} 10. O-O {[%emt 0:00:27]} h6 {[%emt 0:01:55]} 11. Nb3 {[%emt 0:01:15]} O-O {[%emt 0:02:30]} 12. Nc1 {[%emt 0:00:36]} Rfc8 {[%emt 0:03:00]} 13. h3 {[%emt 0:08:29]} Rab8 {[%emt 0:03:40]} 14. Bd3 {[%emt 0:03:07]} Ne7 {[%emt 0:06:03]} 15. Bxf5 {[%emt 0:01:54]} Nxf5 {[%emt 0:00:56]} 16. Nd3 {[%emt 0:00:10]} b5 {[%emt 0:01:26]} 17. a4 {[%emt 0:06:17]} a5 {[%emt 0:04:23]} 18. axb5 {[%emt 0:02:09]} Rxb5 {[%emt 0:00:45]} 19. Qe2 {[%emt 0:01:27]} Qb6 {[%emt 0:01:37]} 20. Ra2 {[%emt 0:03:21]} Ne4 {[%emt 0:05:14]} 21. Rd1 {[%emt 0:07:04]} Nfd6 {[%emt 0:01:32]} 22. Nd2 {[%emt 0:03:20]} Rb8 {[%emt 0:07:58]} 23. Kh1 {[%emt 0:17:49]} f5 {[%emt 0:19:57]} 24. Nf1 {[%emt 0:13:54]} Nc4 {[%emt 0:01:55]} 25. f3 {[%emt 0:00:41]} Ng5 {[%emt 0:02:47]} 26. Rb1 {[%emt 0:01:13]} Nf7 {[%emt 0:03:33]} 27. Nd2 {[%emt 0:01:54]} Nxd2 {[%emt 0:01:52]} 28. Qxd2 {[%emt 0:00:05]} Nd6 {[%emt 0:00:09]} 29. Ne5 {[%emt 0:00:12]} Qc7 {[%emt 0:02:05]} 30. Qe2 {[%emt 0:01:02]} R8b6 {[%emt 0:03:22]} 31. Qd2 {[%emt 0:02:44]} Nc4 {[%emt 0:01:57]} 32. Nxc4 {[%emt 0:00:18]} Qxc4 {[%emt 0:00:02]} 0-1

[Event "2nd Hersonissos Open 2018"]
[Site "Hersonissos"]
[Date "2018.06.24"]
[Round "9"]
[White "Koutsourakis, Ioannis"]
[Black "Loshkarev, Dmitri"]
[Result "1/2-1/2"]
[ECO "D28"]
[WhiteElo "1560"]
[BlackElo "2089"]
[Annotator "NA"]
[PlyCount "82"]
[EventDate "2018.06.23"]
[EventType "swiss"]
[EventCountry "GRE"]
[SourceTitle "playchess.com"]
[Source "ChessBase"]
[SourceQuality "1"]
[TimeControl "5400+30"]

1. d4 {[%emt 0:00:00]} d5 {[%emt 0:01:48]} 2. c4 {[%emt 0:00:00]} dxc4 {[%emt 0:00:26]} 3. e3 {[%emt 0:00:00]} Nf6 {[%emt 0:00:26]} 4. Bxc4 {[%emt 0:00:08]} e6 {[%emt 0:00:09]} 5. Nf3 {[%emt 0:00:40]} c5 {[%emt 0:00:14]} 6. O-O {[%emt 0:01:41]} a6 {[%emt 0:00:07]} 7. Qe2 {[%emt 0:02:09]} b5 {[%emt 0:01:19]} 8. Bd3 {[%emt 0:00:06]} Nc6 {[%emt 0:00:54]} 9. dxc5 Bxc5 {[%emt 0:00:29]} 10. a3 $11 {[%emt 0:10:21] LiveBook: 50 Games} O-O {[%emt 0:04:29]} 11. b4 {[%emt 0:00:38]} Bb6 {[%emt 0:02:58]} 12. Bb2 {[%emt 0:03:04]} Qe7 {[%emt 0:01:52]} 13. Nc3 {[%emt 0:12:24]} h6 {[%emt 0:11:26]} 14. Rac1 {[%emt 0:03:21]} Bb7 {[%emt 0:00:25]} 15. Rfd1 {[%emt 0:07:28]} Rac8 {[%emt 0:07:34]} 16. Rd2 {[%emt 0:07:51]} Ba8 {[%emt 0:12:09]} 17. Rdc2 {[%emt 0:03:29]} Rcd8 {[%emt 0:09:39]} 18. Rd2 {[%emt 0:10:27]} e5 {[%emt 0:06:45]} 19. Ne4 {[%emt 0:04:38]} Nd7 {[%emt 0:10:49]} 20. Nc3 {[%emt 0:04:59]} Nf6 {[%emt 0:03:51]} 21. Ne4 {[%emt 0:00:08]} Rxd3 {[%emt 0:01:03]} 22. Qxd3 {[%emt 0:08:21]} Nxe4 {[%emt 0:04:23]} 23. Qxe4 {[%emt 0:00:06]} Nd4 {[%emt 0:01:50]} 24. Qxe5 {[%emt 0:00:26]} Qxe5 {[%emt 0:00:46]} 25. Nxe5 {[%emt 0:00:06]} Nb3 {[%emt 0:00:25]} 26. Rcd1 {[%emt 0:08:00]} Nxd2 {[%emt 0:00:29]} 27. Rxd2 {[%emt 0:00:01]} Rd8 {[%emt 0:02:00]} 28. Rxd8+ {[%emt 0:00:49]} Bxd8 {[%emt 0:00:07]} 29. Nd3 {[%emt 0:00:11]} a5 {[%emt 0:01:20]} 30. bxa5 {[%emt 0:00:50]} Bxa5 {[%emt 0:00:06]} 31. f3 {[%emt 0:01:07]} Bd5 {[%emt 0:00:37]} 32. Nb4 {[%emt 0:01:23]} Bxb4 {[%emt 0:00:29]} 33. axb4 {[%emt 0:00:01]} f5 {[%emt 0:01:22]} 34. Kf2 {[%emt 0:00:07]} g6 {[%emt 0:01:05]} 35. h3 {[%emt 0:00:45]} h5 {[%emt 0:00:26]} 36. h4 {[%emt 0:00:54]} Kf7 {[%emt 0:00:11]} 37. Kg3 {[%emt 0:00:29]} Bc4 {[%emt 0:00:29]} 38. Kf4 {[%emt 0:00:17]} Bf1 {[%emt 0:00:24]} 39. g3 {[%emt 0:00:10]} Bc4 {[%emt 0:00:04]} 40. e4 {[%emt 0:00:00]} fxe4 {[%emt 0:00:00]} 41. fxe4 {[%emt 0:00:00]} Ke6 {[%emt 0:00:00]} 1/2-1/2

[Event "2nd Hersonissos Open 2018"]
[Site "Hersonissos"]
[Date "2018.06.24"]
[Round "9"]
[White "Mateev, Kaloyan Mateev"]
[Black "Stefanov, Evtim"]
[Result "1-0"]
[ECO "A01"]
[WhiteElo "1539"]
[BlackElo "1959"]
[Annotator "NA"]
[PlyCount "41"]
[EventDate "2018.06.23"]
[EventType "swiss"]
[EventCountry "GRE"]
[SourceTitle "playchess.com"]
[Source "ChessBase"]
[SourceQuality "1"]
[TimeControl "5400+30"]

1. b3 {[%emt 0:00:04]} d5 {[%emt 0:01:26]} 2. e3 {[%emt 0:00:29]} e5 {[%emt 0:02:43]} 3. Bb2 {[%emt 0:01:39]} Bd6 {[%emt 0:15:01]} 4. c4 {[%emt 0:01:21]} c6 {[%emt 0:00:39]} 5. Nf3 {[%emt 0:05:28]} Qe7 {[%emt 0:03:55]} 6. d4 {[%emt 0:06:56]} e4 {[%emt 0:11:52]} 7. Ne5 {[%emt 0:04:25]} f6 {[%emt 0:03:30]} 8. Qh5+ {[%emt 0:00:59]} Kf8 {[%emt 0:04:33]} 9. Ng6+ {[%emt 0:01:49]} hxg6 {[%emt 0:00:12]} 10. Qxh8 {[%emt 0:00:09]} Kf7 {[%emt 0:02:18]} 11. h4 {[%emt 0:04:04]} Na6 {[%emt 0:01:46]} 12. h5 {[%emt 0:02:21]} Nh6 {[%emt 0:03:31]} 13. Be2 $11 {[%emt 0:03:36]} (13. hxg6+ $18 Kxg6 14. Be2) 13... Nc7 {[%emt 0:06:36]} 14. hxg6+ {[%emt 0:03:33]} Ke6 {[%emt 0:03:11]} 15. Rxh6 {[%emt 0:04:32]} Bd7 {[%emt 0:02:01]} 16. Qh7 {[%emt 0:01:39]} gxh6 {[%emt 0:00:46]} 17. g7 {[%emt 0:03:07]} Qf7 {[%emt 0:02:52]} 18. c5 {[%emt 0:04:51]} Be7 {[%emt 0:01:13]} 19. Bg4+ {[%emt 0:00:53]} f5 {[%emt 0:00:33]} 20. Bxf5+ {[%emt 0:00:43]} Qxf5 {[%emt 0:02:01]} 21. g8=Q+ {Ke5} 1-0

[Event "2nd Hersonissos Open 2018"]
[Site "Hersonissos"]
[Date "2018.06.24"]
[Round "9"]
[White "Koutsouraki, Ariadni"]
[Black "Angermuende, Dirk"]
[Result "0-1"]
[ECO "C01"]
[WhiteElo "1373"]
[BlackElo "1966"]
[Annotator "NA"]
[PlyCount "98"]
[EventDate "2018.06.23"]
[EventType "swiss"]
[EventCountry "GRE"]
[SourceTitle "playchess.com"]
[Source "ChessBase"]
[SourceQuality "1"]
[TimeControl "5400+30"]

1. e4 {[%emt 0:00:00]} e6 {[%emt 0:00:15]} 2. d4 {[%emt 0:00:00]} d5 {[%emt 0:00:06]} 3. exd5 {[%emt 0:00:53]} exd5 {[%emt 0:00:06]} 4. Bd3 {[%emt 0:01:14]} Bd6 $11 {[%emt 0:00:05] LiveBook: 728 Partien} 5. Nf3 {[%emt 0:04:13]} Ne7 {[%emt 0:00:12]} 6. h3 {[%emt 0:03:27]} O-O {[%emt 0:00:16]} 7. O-O {[%emt 0:00:45]} Bf5 {[%emt 0:00:38]} 8. Re1 {[%emt 0:01:27]} Bxd3 9. Qxd3 {[%emt 0:00:50]} c6 {[%emt 0:01:03]} 10. c3 {[%emt 0:04:00]} Nd7 {[%emt 0:00:43]} 11. Be3 {[%emt 0:03:49]} Qc7 {[%emt 0:00:55]} 12. Nbd2 {[%emt 0:07:27]} Rae8 {[%emt 0:00:11]} 13. c4 {[%emt 0:04:55]} dxc4 {[%emt 0:01:24]} 14. Nxc4 {[%emt 0:02:28]} Bb4 {[%emt 0:01:12]} 15. Red1 {[%emt 0:04:11]} Nd5 {[%emt 0:00:42]} 16. a3 {[%emt 0:03:33]} Be7 {[%emt 0:00:10]} 17. Rac1 {[%emt 0:02:13]} Qd8 {[%emt 0:04:01]} 18. Qb3 {[%emt 0:02:14]} N7b6 {[%emt 0:02:05]} 19. Nce5 {[%emt 0:04:36]} Bd6 {[%emt 0:03:07]} 20. Re1 {[%emt 0:01:19]} Re7 {[%emt 0:02:05]} 21. Bd2 {[%emt 0:04:04]} Rfe8 {[%emt 0:01:28]} 22. Nd3 {[%emt 0:06:55]} Nc8 {[%emt 0:07:52]} 23. Nb4 {[%emt 0:06:49]} Qb6 {[%emt 0:03:50]} 24. Qc4 {[%emt 0:04:17]} Bxb4 {[%emt 0:05:02]} 25. Bxb4 {[%emt 0:00:57]} Nxb4 {[%emt 0:00:19]} 26. axb4 {[%emt 0:01:49]} Rxe1+ {[%emt 0:01:59]} 27. Rxe1 {[%emt 0:00:16]} Rxe1+ {[%emt 0:00:06]} 28. Nxe1 {[%emt 0:00:06]} Ne7 {[%emt 0:01:15]} 29. Qc5 {[%emt 0:00:59]} Nd5 {[%emt 0:00:10]} 30. Qxb6 {[%emt 0:01:04]} Nxb6 {[%emt 0:02:45]} 31. Nc2 {[%emt 0:00:23]} Kf8 {[%emt 0:00:51]} 32. f3 {[%emt 0:00:51]} Ke7 {[%emt 0:00:46]} 33. Kf2 {[%emt 0:00:14]} Nd5 {[%emt 0:01:36]} 34. g3 {[%emt 0:01:17]} Kd6 {[%emt 0:00:14]} 35. Ke2 {[%emt 0:01:13]} h5 {[%emt 0:01:09]} 36. h4 {[%emt 0:00:59]} f6 {[%emt 0:00:23]} 37. f4 {[%emt 0:02:34]} Ke6 {[%emt 0:02:09]} 38. Kf3 {[%emt 0:01:19]} Kf5 {[%emt 0:04:33]} 39. Ne3+ {[%emt 0:00:50]} Nxe3 {[%emt 0:00:06]} 40. Kxe3 {[%emt 0:00:00]} Kg4 {[%emt 0:00:00]} 41. Kf2 {[%emt 0:00:00]} Kh3 {[%emt 0:00:00]} 42. b5 {[%emt 0:00:00]} a6 {[%emt 0:00:00]} 43. bxc6 {[%emt 0:00:00]} bxc6 {[%emt 0:00:00]} 44. Kf3 {[%emt 0:00:00]} f5 {[%emt 0:00:00]} 45. Kf2 {[%emt 0:00:00]} Kh2 {[%emt 0:00:00]} 46. Kf3 {[%emt 0:00:00]} Kg1 {[%emt 0:00:00]} 47. b3 {[%emt 0:00:00]} a5 {[%emt 0:00:00]} 48. Ke2 {[%emt 0:00:00]} Kg2 {[%emt 0:00:00]} 49. Ke3 {[%emt 0:00:00]} Kxg3 {[%emt 0:00:00]} 0-1